bitfinex/quotes_BTCUSD_20251015
["timestamp","ask_amount","ask_price","bid_price","bid_amount"]
[1760560230396,5.6148241,111090.0,111080.0,0.02802422]
[1760560230602,6.08847527,111090.0,111080.0,0.02802422]
[1760560230814,4.97100089,111090.0,111080.0,0.20807463]
[1760560231014,4.85100089,111090.0,111080.0,0.20807463]
[1760560231620,5.37465206,111090.0,111070.0,0.18014414]
[1760560231820,5.19120349,111080.0,111070.0,0.18014414]
[1760560232037,5.27120349,111080.0,111070.0,0.18014414]
[1760560232239,5.27120349,111080.0,111070.0,8e-05]
[1760560232440,5.27120349,111080.0,111070.0,0.18014662]
[1760560233011,5.4512539,111080.0,111070.0,8e-05]
[1760560233215,6.01458715,111080.0,111070.0,8e-05]
[1760560233422,6.04869408,111080.0,111070.0,8e-05]
[1760560233582,5.57504291,111080.0,111070.0,8e-05]
[1760560233775,5.50440728,111080.0,111070.0,8e-05]
[1760560233975,5.50440728,111080.0,111070.0,0.18014662]
[1760560233976,5.27120349,111080.0,111070.0,0.18014662]
[1760560234242,5.4512539,111080.0,111070.0,8e-05]
[1760560234375,5.27120349,111080.0,111070.0,0.18014662]
[1760560234790,0.09715649,111080.0,111070.0,0.18014662]
[1760560235622,0.00014911,111110.0,111090.0,0.1800342]
[1760560235849,0.1363462,111100.0,111090.0,0.65368537]
[1760560236201,0.01649531,111110.0,111100.0,0.180018]
[1760560236397,0.00014911,111110.0,111100.0,0.180018]
[1760560236603,0.00014911,111110.0,111100.0,0.65366917]
[1760560237225,0.00014911,111110.0,111100.0,0.180018]
[1760560237640,0.00229181,111110.0,111100.0,0.180018]
[1760560240432,5.33633881,111110.0,111100.0,0.180018]
[1760560240633,4.85248247,111110.0,111100.0,0.180018]
[1760560241104,4.94216455,111110.0,111100.0,0.180018]
[1760560241463,4.85248247,111110.0,111100.0,0.180018]
[1760560243292,4.83633881,111110.0,111100.0,0.180018]
[1760560243507,0.00229181,111110.0,111100.0,0.180018]
[1760560244153,0.00229181,111110.0,111100.0,0.65366917]
[1760560244366,0.00229181,111110.0,111100.0,0.180018]
[1760560244574,0.00229181,111110.0,111100.0,0.65366917]
[1760560244788,0.00229181,111110.0,111100.0,0.74335929]
[1760560246174,0.00229181,111110.0,111080.0,0.18903893]
[1760560246175,0.01843547,111110.0,111080.0,0.18903893]
[1760560246373,0.01654873,111100.0,111090.0,0.1800298]
[1760560246734,4.85059573,111100.0,111090.0,0.1800298]
[1760560247143,4.8697677,111100.0,111090.0,0.1800298]
[1760560247584,4.834047,111090.0,111080.0,0.18005041]
[1760560247905,4.834047,111080.0,111070.0,0.00066822]
[1760560248120,5.06705941,111080.0,111070.0,0.00066822]
[1760560248328,5.89071058,111080.0,111070.0,0.00066822]
[1760560248692,5.71066017,111080.0,111070.0,0.18073484]
[1760560248902,5.71066017,111080.0,111070.0,0.00066822]
[1760560249221,5.82418145,111080.0,111070.0,0.18073484]
[1760560249435,5.85800251,111080.0,111070.0,0.18073484]
[1760560250088,5.85800251,111080.0,111070.0,0.00066822]
[1760560250587,6.03805292,111080.0,111070.0,0.00066822]
[1760560250788,6.5436141,111080.0,111070.0,0.00066822]
[1760560251004,6.04612373,111080.0,111070.0,0.00066822]
[1760560251789,6.53572838,111080.0,111070.0,0.00066822]
[1760560251952,6.5521313,111080.0,111020.0,0.1000169]
[1760560252190,5.01417849,111030.0,111020.0,0.1000169]
[1760560252551,5.93735136,111030.0,111020.0,0.1000169]
[1760560253171,5.78918234,111030.0,111020.0,0.1000169]
[1760560253420,5.67726194,111030.0,111020.0,0.1000169]
[1760560253616,5.67726194,111030.0,111020.0,0.0950169]
[1760560254044,5.0031336,111030.0,111020.0,0.27516462]
[1760560254248,4.99182209,111030.0,111020.0,0.27516462]
[1760560254452,4.98182209,111030.0,111020.0,0.27516462]
[1760560254873,5.72560475,111030.0,111020.0,0.0950169]
[1760560255082,5.27592543,111030.0,111020.0,0.0950169]
[1760560255290,5.781489,111030.0,111020.0,0.0950169]
[1760560255494,5.27587536,111030.0,111020.0,0.0950169]
[1760560255704,5.76089612,111030.0,111020.0,0.0950169]
[1760560255915,5.79285859,111030.0,111020.0,0.0950169]
[1760560256327,5.28724495,111030.0,111020.0,0.0950169]
[1760560256535,5.76089612,111030.0,111020.0,0.0950169]
[1760560256972,5.28724495,111030.0,111020.0,0.0950169]
[1760560257194,5.58076463,111030.0,111020.0,0.0950169]
[1760560257451,5.08319168,111030.0,111020.0,0.0950169]
[1760560257656,5.16965543,111030.0,111020.0,0.27516462]
[1760560257865,4.69600426,111030.0,111020.0,0.2781072]
[1760560258083,0.09014892,111030.0,111020.0,0.2781072]
[1760560258264,0.00014892,111030.0,111020.0,0.2781072]
[1760560258927,0.01953526,111030.0,111020.0,0.2781072]
[1760560259135,5.12965543,111030.0,111020.0,0.09795948]
[1760560259343,5.64978692,111030.0,111020.0,0.09795948]
[1760560259568,5.68547186,111030.0,111020.0,0.09795948]
[1760560259834,5.68547186,111030.0,111020.0,0.2781072]
[1760560259835,5.0316892,111030.0,111020.0,0.2781072]
[1760560260016,4.99600426,111030.0,111020.0,0.2781072]
[1760560260520,4.65600426,111030.0,111020.0,0.2781072]
[1760560260732,0.06953526,111030.0,111020.0,0.2781072]
[1760560260952,0.00014892,111030.0,111020.0,0.75175837]
[1760560261152,1e-08,111030.0,111020.0,0.75175837]
[1760560261422,1e-08,111030.0,111020.0,0.84144849]
[1760560261647,1e-08,111030.0,111020.0,0.4039796]
[1760560261876,1e-08,111030.0,111020.0,0.2781072]
[1760560262549,1e-08,111030.0,111020.0,0.75175837]
[1760560263010,1e-08,111030.0,111020.0,0.2781072]
[1760560263237,1e-08,111030.0,111020.0,0.75175837]
[1760560263475,1e-08,111030.0,111020.0,1.01321619]
[1760560263689,1e-08,111030.0,111020.0,1.10290631]
[1760560263886,1e-08,111030.0,111020.0,1.13908859]
[1760560264769,1e-08,111030.0,111020.0,0.4039796]
[1760560264979,1e-08,111030.0,111020.0,1.13908859]
[1760560265184,1e-08,111030.0,111020.0,0.4039796]
[1760560265389,1e-08,111030.0,111020.0,1.13908859]
[1760560265600,1e-08,111030.0,111020.0,1.47908859]
[1760560265806,1e-08,111030.0,111020.0,0.4039796]
[1760560266016,1e-08,111030.0,111020.0,0.5190196]
[1760560266195,1e-08,111030.0,111020.0,1.25412859]
[1760560266841,1e-08,111030.0,111020.0,0.3931472]
[1760560267052,1e-08,111030.0,111020.0,1.12825619]
[1760560267263,1e-08,111030.0,111020.0,1.21794631]
[1760560267473,1e-08,111030.0,111020.0,1.25412859]
[1760560267683,1e-08,111030.0,111020.0,1.01321619]
[1760560267888,1e-08,111030.0,111020.0,1.12833619]
[1760560268939,1e-08,111030.0,111020.0,1.12829619]
[1760560269573,1e-08,111030.0,111020.0,1.01321619]
[1760560269783,1e-08,111030.0,111020.0,0.3931872]
[1760560270401,1e-08,111030.0,111020.0,0.2781072]
[1760560270627,1e-08,111030.0,111020.0,0.3931872]
[1760560270857,1e-08,111030.0,111020.0,0.2781072]
[1760560271503,4.58646901,111030.0,111020.0,0.2781072]
[1760560271704,1e-08,111030.0,111020.0,0.2781072]
[1760560271897,4.58646901,111030.0,111020.0,0.2781072]
[1760560272102,1e-08,111030.0,111020.0,0.2781072]
[1760560272325,1e-08,111030.0,111020.0,1.01321619]
[1760560272584,1e-08,111030.0,111020.0,1.13908859]
[1760560273168,1e-08,111030.0,111020.0,1.47908859]
[1760560274751,1e-08,111030.0,111020.0,0.7439796]
[1760560274955,1e-08,111030.0,111020.0,1.47908859]
[1760560275152,1e-08,111030.0,111020.0,1.59412859]
[1760560276100,1e-08,111030.0,111020.0,0.8590196]
[1760560276325,1e-08,111030.0,111020.0,1.59408859]
[1760560277707,1e-08,111030.0,111020.0,0.4039796]
[1760560278163,1e-08,111030.0,111020.0,1.21786631]
[1760560278496,1e-08,111030.0,111020.0,0.5189396]
[1760560278722,1e-08,111030.0,111020.0,1.25404859]
[1760560278928,1e-08,111030.0,111020.0,1.13908859]
[1760560279124,1e-08,111030.0,111020.0,0.36779732]
[1760560279331,1e-08,111030.0,111020.0,1.21786631]
[1760560279571,1e-08,111030.0,111020.0,1.10290631]
[1760560280026,1e-08,111030.0,111020.0,1.21786631]
[1760560280668,1e-08,111030.0,111020.0,1.01321619]
[1760560280872,1e-08,111030.0,111020.0,0.2781072]
[1760560281277,1e-08,111030.0,111020.0,1.01321619]
[1760560281699,1e-08,111030.0,111020.0,0.2781072]
[1760560282774,1e-08,111030.0,111020.0,1.01321619]
[1760560282996,1e-08,111030.0,111020.0,1.25400859]
[1760560283220,1e-08,111030.0,111020.0,1.13908859]
[1760560283422,1e-08,111030.0,111020.0,1.25400859]
[1760560283642,1e-08,111030.0,111020.0,1.13908859]
[1760560284061,1e-08,111030.0,111020.0,1.25396859]
[1760560284918,1e-08,111030.0,111020.0,0.4039796]
[1760560285125,1e-08,111030.0,111020.0,1.25396859]
[1760560285814,1e-08,111030.0,111020.0,0.5188596]
[1760560286261,1e-08,111030.0,111020.0,1.25396859]
[1760560286470,1e-08,111030.0,111020.0,1.13908859]
[1760560286727,1e-08,111030.0,111020.0,1.25392859]
[1760560287601,1e-08,111030.0,111020.0,0.4039796]
[1760560287812,1e-08,111030.0,111020.0,1.25392859]
[1760560289128,1e-08,111030.0,111020.0,1.13908859]
[1760560289302,1e-08,111030.0,111020.0,1.25392859]
[1760560291413,1e-08,111030.0,111020.0,1.59388859]
[1760560292037,1e-08,111030.0,111020.0,0.8587796]
[1760560292261,1e-08,111030.0,111020.0,1.60531733]
[1760560292888,0.0717521,111070.0,111060.0,0.18008283]
[1760560293095,0.0717521,111070.0,111060.0,1.04106422]
[1760560293096,0.07190265,111070.0,111060.0,1.04106422]
[1760560293467,0.00015055,111070.0,111060.0,1.04106422]
[1760560293870,0.00015055,111070.0,111060.0,0.30595523]
[1760560294072,0.00015055,111070.0,111060.0,1.15582422]
[1760560294487,0.28483345,111110.0,111090.0,0.1800342]
[1760560294662,0.40498397,111110.0,111100.0,0.180018]
[1760560294879,5.24378119,111110.0,111100.0,0.180018]
[1760560295103,5.17202909,111110.0,111100.0,0.180018]
[1760560295302,5.14795181,111110.0,111100.0,0.180018]
[1760560295714,0.13629418,111110.0,111100.0,0.180018]
[1760560296509,0.12015052,111110.0,111100.0,0.180018]
[1760560297614,5.63877837,111110.0,111100.0,0.180018]
[1760560297839,5.12015052,111110.0,111100.0,0.180018]
[1760560299624,0.13138909,111110.0,111100.0,0.180018]
[1760560299843,5.63138909,111110.0,111100.0,0.180018]
[1760560300062,5.12015052,111110.0,111100.0,0.180018]
[1760560301378,5.0,111100.0,111090.0,0.1800342]
[1760560301592,4.879487,111100.0,111090.0,0.1800342]
[1760560301798,5.39578118,111110.0,111100.0,0.180018]
[1760560302021,5.02578118,111110.0,111100.0,0.180018]
[1760560302971,0.13015052,111110.0,111100.0,0.180018]
[1760560303200,1e-08,111110.0,111100.0,1.04099939]
[1760560303421,1e-08,111110.0,111100.0,1.38099939]
[1760560304102,1e-08,111110.0,111100.0,0.6458904]
[1760560304742,1e-08,111110.0,111100.0,0.65743979]
[1760560306991,1e-08,111110.0,111100.0,0.77211979]
[1760560307196,1e-08,111110.0,111100.0,0.62125751]
[1760560307407,1e-08,111110.0,111100.0,0.77211979]
[1760560307610,1e-08,111110.0,111100.0,0.65743979]
[1760560307824,1e-08,111110.0,111100.0,0.77211979]
[1760560308031,1e-08,111110.0,111100.0,0.77215979]
[1760560308246,1e-08,111110.0,111100.0,0.65743979]
[1760560308672,1e-08,111110.0,111100.0,0.77215979]
[1760560309729,1e-08,111110.0,111100.0,0.65743979]
[1760560309939,1e-08,111110.0,111100.0,0.77215979]
[1760560310414,1e-08,111110.0,111100.0,0.65743979]
[1760560310552,1e-08,111110.0,111100.0,0.6458904]
[1760560310765,1e-08,111110.0,111100.0,1.49567939]
[1760560311186,1e-08,111110.0,111100.0,1.38099939]
[1760560311386,1e-08,111110.0,111100.0,0.3058904]
[1760560312077,1e-08,111110.0,111100.0,0.4205704]
[1760560312382,1e-08,111110.0,111100.0,1.04099939]
[1760560312605,1e-08,111110.0,111100.0,0.4205304]
[1760560313034,1e-08,111110.0,111100.0,0.38434812]
[1760560313444,1e-08,111110.0,111100.0,0.26970812]
[1760560313857,1e-08,111110.0,111100.0,0.3058904]
[1760560314283,1e-08,111110.0,111100.0,0.180018]
[1760560316274,1e-08,111110.0,111100.0,0.26970812]
[1760560316636,1e-08,111110.0,111100.0,1.04099939]
[1760560316813,1e-08,111110.0,111100.0,0.3058904]
[1760560319842,1e-08,111110.0,111100.0,1.04099939]
[1760560320405,1e-08,111110.0,111100.0,0.3058904]
[1760560321145,1e-08,111110.0,111100.0,0.26970812]
[1760560322178,1e-08,111110.0,111100.0,1.04099939]
[1760560322779,1e-08,111110.0,111100.0,0.3058904]
[1760560323397,1e-08,111110.0,111100.0,1.04099939]
[1760560323594,1e-08,111110.0,111100.0,1.15555939]
[1760560323838,1e-08,111110.0,111100.0,0.4204504]
[1760560324015,1e-08,111110.0,111100.0,0.3058904]
[1760560324227,1e-08,111110.0,111100.0,0.4204504]
[1760560324421,1e-08,111110.0,111100.0,0.3058904]
[1760560324797,1e-08,111110.0,111100.0,0.4204504]
[1760560325005,1e-08,111110.0,111100.0,1.15555939]
[1760560325281,1e-08,111110.0,111100.0,1.04099939]
[1760560325493,1e-08,111110.0,111100.0,0.3058904]
[1760560326148,1e-08,111110.0,111100.0,0.78033641]
[1760560326355,1e-08,111110.0,111100.0,0.3058904]
[1760560326566,1e-08,111110.0,111100.0,0.5694104]
[1760560326818,1e-08,111110.0,111100.0,0.4548904]
[1760560327033,1e-08,111110.0,111100.0,0.3058904]
[1760560327243,1e-08,111110.0,111100.0,0.4204104]
[1760560327663,1e-08,111110.0,111100.0,0.3058904]
[1760560327884,1e-08,111110.0,111100.0,0.78033641]
[1760560328315,1e-08,111110.0,111100.0,0.3058904]
[1760560328742,1e-08,111110.0,111100.0,0.4204104]
[1760560329212,1e-08,111110.0,111100.0,0.3058904]
[1760560329657,1e-08,111110.0,111100.0,0.4204104]
[1760560330071,1e-08,111110.0,111100.0,0.3058904]
[1760560330489,1e-08,111110.0,111100.0,0.4204104]
[1760560331305,1e-08,111110.0,111100.0,0.4203704]
[1760560331711,5.1217521,111140.0,111130.0,0.18896787]
[1760560331933,0.0717521,111140.0,111130.0,0.78974216]
[1760560332140,5.61545698,111170.0,111160.0,0.17992083]
[1760560332342,5.7475322,111170.0,111160.0,0.17992083]
[1760560332762,5.21260175,111170.0,111160.0,0.17992083]
[1760560333229,5.19888705,111170.0,111160.0,0.17992083]
[1760560333447,0.13761939,111170.0,111160.0,0.17992083]
[1760560333662,0.11,111170.0,111160.0,0.17992083]
[1760560334297,0.11,111170.0,111160.0,0.26961095]
[1760560335365,0.11,111170.0,111160.0,0.74405696]
[1760560335865,0.11,111170.0,111160.0,0.26961095]
[1760560342510,5.01123744,111190.0,111180.0,0.17988846]
[1760560342717,0.14883112,111190.0,111180.0,0.17988846]
[1760560342941,0.11469995,111190.0,111180.0,0.17988846]
[1760560343395,0.29457224,111190.0,111180.0,0.17988846]
[1760560343612,0.11469995,111190.0,111180.0,0.17988846]
[1760560343832,0.11485053,111190.0,111180.0,0.17988846]
[1760560344058,0.07,111190.0,111180.0,0.17988846]
[1760560344748,0.07,111190.0,111180.0,0.65433447]
[1760560344971,0.07,111190.0,111180.0,0.74402459]
[1760560345384,0.07,111190.0,111180.0,0.26957858]
[1760560346003,0.07,111190.0,111180.0,0.17988846]
[1760560346231,0.7243183,111190.0,111180.0,0.17988846]
[1760560346446,0.24987229,111190.0,111180.0,0.17988846]
[1760560346656,0.7243183,111190.0,111180.0,0.17988846]
[1760560347136,0.24987229,111190.0,111180.0,0.17988846]
[1760560347348,0.07,111190.0,111180.0,0.26957858]
[1760560347768,5.03038751,111210.0,111200.0,0.17985611]
[1760560347980,5.16541769,111210.0,111200.0,0.18031199]
[1760560348233,5.81970364,111210.0,111200.0,0.18031199]
[1760560348914,5.16541769,111210.0,111200.0,0.18031199]
[1760560349119,5.6398637,111210.0,111200.0,0.18031199]
[1760560349555,0.1487309,111210.0,111200.0,0.18031199]
[1760560349746,5.60739538,111220.0,111210.0,0.17983994]
[1760560349983,5.70577725,111220.0,111210.0,0.17983994]
[1760560350614,5.0,111210.0,111200.0,0.18031199]
[1760560350830,5.61444601,111210.0,111200.0,0.18031199]
[1760560351070,0.0002,111230.0,111200.0,0.37793649]
[1760560351287,0.0002,111230.0,111220.0,0.17982377]
[1760560351497,0.0002,111230.0,111220.0,0.26951389]
[1760560352124,0.01163928,111230.0,111220.0,0.26951389]
[1760560352361,0.0002,111230.0,111220.0,0.26951389]
[1760560352572,0.48593399,111230.0,111220.0,0.17982377]
[1760560353196,0.0002,111230.0,111220.0,0.17982377]
[1760560354870,0.0002,111230.0,111220.0,0.30569617]
[1760560355261,0.00254829,111230.0,111220.0,0.30569617]
[1760560356343,0.4769943,111230.0,111220.0,0.26951389]
[1760560356764,0.00254829,111230.0,111220.0,0.26951389]
[1760560356968,0.00254829,111230.0,111220.0,0.17982377]
[1760560357172,0.00254829,111230.0,111210.0,0.17983756]
[1760560357173,0.17982377,111220.0,111210.0,0.17983756]
[1760560357389,0.47444601,111220.0,111210.0,0.17983994]
[1760560357808,0.47464601,111230.0,111220.0,0.17982377]
[1760560358015,0.77445361,111230.0,111220.0,0.17982377]
[1760560359081,0.3000076,111230.0,111220.0,0.17982377]
[1760560359290,0.77445361,111230.0,111220.0,0.17982377]
[1760560360363,0.59464601,111230.0,111220.0,0.17982377]
[1760560360573,0.3000076,111230.0,111220.0,0.17982377]
[1760560360784,0.77445361,111230.0,111220.0,0.17982377]
[1760560360989,0.3000076,111230.0,111220.0,0.17982377]
[1760560361213,0.77445361,111230.0,111220.0,0.17982377]
[1760560362013,0.3000076,111230.0,111220.0,0.17982377]
[1760560362223,0.77445361,111230.0,111220.0,0.17982377]
[1760560364195,0.78279686,111230.0,111220.0,0.17982377]
[1760560364602,0.78514515,111230.0,111220.0,0.17982377]
[1760560365811,5.17983102,111220.0,111200.0,0.18031199]
[1760560366009,5.0,111210.0,111200.0,0.21649427]
[1760560368977,5.0,111220.0,111210.0,0.17983994]
[1760560369180,5.12834773,111220.0,111210.0,0.17983994]
[1760560369415,5.60279374,111220.0,111210.0,0.17983994]
[1760560369735,5.60279374,111220.0,111200.0,0.21649427]
[1760560369952,5.60279374,111220.0,111200.0,0.18031199]
[1760560369953,5.99428595,111210.0,111200.0,0.18031199]
[1760560370171,6.14933343,111210.0,111200.0,0.18031199]
[1760560370817,6.16143028,111210.0,111200.0,0.00045588]
[1760560371245,5.68815863,111210.0,111200.0,0.00045588]
[1760560371490,6.16260464,111210.0,111200.0,0.00045588]
[1760560373546,6.25228672,111210.0,111200.0,0.00045588]
[1760560373965,6.16262434,111210.0,111200.0,0.00045588]
[1760560377216,6.18967338,111210.0,111200.0,0.00045588]
[1760560377431,6.66411939,111210.0,111200.0,0.00045588]
[1760560378871,6.18967338,111210.0,111200.0,0.00045588]
[1760560380753,6.66411939,111210.0,111200.0,0.00045588]
[1760560380977,6.75380147,111210.0,111200.0,0.00045588]
[1760560381380,6.27935546,111210.0,111200.0,0.00045588]
[1760560381946,5.71522737,111210.0,111200.0,0.00045588]
[1760560382124,6.18967338,111210.0,111200.0,0.00045588]
[1760560383695,6.66411939,111210.0,111200.0,0.00045588]
[1760560384878,6.18967338,111210.0,111200.0,0.00045588]
[1760560386302,5.69016019,111210.0,111200.0,0.00045588]
[1760560386553,6.1646062,111210.0,111200.0,0.00045588]
[1760560387026,6.1646062,111210.0,111200.0,0.18031199]
[1760560387456,5.48327121,111210.0,111200.0,0.18031199]
[1760560387694,5.14327121,111210.0,111200.0,0.18031199]
[1760560387919,0.13117436,111210.0,111200.0,0.18031199]
[1760560388368,1.05619423,111210.0,111200.0,0.00045588]
[1760560388596,6.39619423,111210.0,111200.0,0.00045588]
[1760560388786,6.41292122,111210.0,111200.0,0.00045588]
[1760560389047,6.42128459,111210.0,111200.0,0.00045588]
[1760560390354,6.45007884,111210.0,111200.0,0.00045588]
[1760560390568,6.53976092,111210.0,111200.0,0.00045588]
[1760560390790,6.53976092,111210.0,111160.0,0.00214081]
[1760560390996,6.25298773,111170.0,111160.0,0.00214081]
[1760560391212,6.39670243,111170.0,111160.0,0.00214081]
[1760560392278,6.39720395,111170.0,111160.0,0.00214081]
[1760560392517,6.48688603,111170.0,111160.0,0.00214081]
[1760560392741,6.39720395,111170.0,111160.0,0.00214081]
[1760560392989,6.41391485,111170.0,111160.0,0.00214081]
[1760560393416,6.46273687,111170.0,111160.0,0.00214081]
[1760560396030,6.48495186,111170.0,111160.0,0.00214081]
[1760560396250,6.48495186,111170.0,111160.0,1e-08]
[1760560396251,6.59694713,111170.0,111160.0,1e-08]
[1760560396475,5.87477396,111170.0,111160.0,1e-08]
[1760560396699,6.60785704,111170.0,111160.0,1e-08]
[1760560397767,6.61047219,111170.0,111160.0,1e-08]
[1760560399119,0.1799694,111130.0,111110.0,0.0717521]
[1760560399361,5.95443992,111120.0,111110.0,0.0717521]
[1760560399576,5.0,111100.0,111090.0,0.26078364]
[1760560399782,6.05964981,111100.0,111090.0,0.18903154]
[1760560399991,6.05964981,111100.0,111080.0,0.18945082]
[1760560400221,5.74983439,111090.0,111080.0,0.18945082]
[1760560400435,5.99926948,111090.0,111080.0,0.0004]
[1760560400651,5.94986859,111090.0,111080.0,0.0004]
[1760560400889,5.96649901,111090.0,111080.0,0.0004]
[1760560401108,6.37886652,111090.0,111080.0,0.0004]
[1760560401589,6.4150488,111090.0,111080.0,1e-08]
[1760560401854,6.4150488,111090.0,111040.0,0.0004]
[1760560401855,5.52009905,111050.0,111040.0,0.0004]
[1760560402075,6.41838778,111050.0,111040.0,0.0004]
[1760560402311,6.41838778,111050.0,111040.0,1e-08]
[1760560402312,7.18765314,111050.0,111040.0,1e-08]
[1760560402531,5.52013149,111030.0,111020.0,0.0950169]
[1760560402760,5.66951783,111030.0,111020.0,0.0950169]
[1760560402966,6.40260091,111030.0,111020.0,0.0950169]
[1760560403229,6.4031015,111030.0,111020.0,0.0950169]
[1760560403666,5.67001842,111030.0,111020.0,0.0950169]
[1760560403880,5.7597005,111030.0,111020.0,0.0950169]
[1760560404095,6.4031015,111030.0,111020.0,0.0950169]
[1760560404556,5.14988693,111030.0,111020.0,0.0950169]
[1760560404782,5.01988693,111030.0,111020.0,0.27516462]
[1760560406564,5.00050059,111030.0,111020.0,0.27516462]
[1760560406771,0.00050059,111030.0,111020.0,0.27516462]
[1760560406990,0.00050059,111030.0,111020.0,0.28340051]
[1760560407202,0.00050059,111030.0,111020.0,0.37309063]
[1760560407846,0.00050059,111030.0,111020.0,0.40927291]
[1760560408276,1e-08,111030.0,111020.0,1.14235599]
[1760560408695,1e-08,111030.0,111020.0,1.25679599]
[1760560409346,1e-08,111030.0,111020.0,1.59679599]
[1760560409781,1e-08,111030.0,111020.0,0.86371291]
[1760560409989,1e-08,111030.0,111020.0,1.59679599]
[1760560410201,1e-08,111030.0,111020.0,0.86371291]
[1760560410629,1e-08,111030.0,111020.0,1.59679599]
[1760560414331,1e-08,111030.0,111020.0,1.59675599]
[1760560418685,1e-08,111070.0,111060.0,0.18008283]
[1760560418897,1e-08,111070.0,111060.0,1.15354889]
[1760560419101,1e-08,111070.0,111060.0,0.42046581]
[1760560419303,5.0,111090.0,111080.0,0.18005041]
[1760560419501,5.0,111090.0,111070.0,0.18005224]
[1760560419728,5.0,111080.0,111070.0,0.18006282]
[1760560419940,5.0,111070.0,111060.0,0.18023268]
[1760560420161,5.73308308,111070.0,111060.0,0.18023341]
[1760560420361,6.0231497,111070.0,111060.0,0.00015058]
[1760560420706,6.0231497,111070.0,111060.0,0.18023341]
[1760560420904,5.84308308,111070.0,111060.0,0.18023341]
[1760560422048,5.11,111070.0,111060.0,0.18023341]
[1760560422479,6.04091412,111070.0,111060.0,0.00015058]
[1760560422694,6.0416182,111070.0,111060.0,0.00015058]
[1760560423869,6.04091412,111070.0,111060.0,0.00015058]
[1760560424365,6.04091412,111070.0,111060.0,0.00603124]
[1760560428270,6.05758138,111070.0,111060.0,0.00603124]
[1760560429165,6.39849669,111070.0,111060.0,0.00603124]
[1760560429384,6.4239985,111070.0,111060.0,0.00603124]
[1760560429806,5.69091542,111070.0,111060.0,0.00603124]
[1760560430017,6.4239985,111070.0,111060.0,0.00603124]
[1760560430448,6.39758138,111070.0,111060.0,0.00603124]
[1760560431295,6.42779126,111070.0,111060.0,0.00603124]
[1760560432123,6.44412165,111070.0,111060.0,0.00603124]
[1760560432799,6.44459624,111070.0,111060.0,0.00603124]
[1760560433416,5.71151316,111070.0,111060.0,0.00603124]
[1760560433617,6.44459624,111070.0,111060.0,0.00603124]
[1760560433864,5.71151316,111070.0,111060.0,0.00603124]
[1760560434048,6.44459624,111070.0,111060.0,0.00603124]
[1760560434747,6.42779126,111070.0,111060.0,0.00603124]
[1760560435327,6.45518389,111070.0,111060.0,0.00603124]
[1760560435728,6.42779126,111070.0,111060.0,0.00603124]
[1760560435931,6.44459624,111070.0,111060.0,0.00603124]
[1760560436770,6.44463477,111070.0,111060.0,0.00603124]
[1760560437750,6.44483868,111070.0,111060.0,1e-08]
[1760560437954,6.39782382,111070.0,111060.0,1e-08]
[1760560438163,5.91321457,111030.0,111020.0,0.28417133]
[1760560438370,6.04260091,111030.0,111020.0,0.28432185]
[1760560438584,5.86246942,111030.0,111020.0,0.28432185]
[1760560438768,5.86246942,111030.0,111020.0,0.28667602]
[1760560439062,5.12938634,111030.0,111020.0,0.28667602]
[1760560439290,5.11,111030.0,111020.0,0.28667602]
[1760560442419,5.0,111040.0,111030.0,0.18013149]
[1760560442653,5.02,111040.0,111030.0,0.18013149]
[1760560443099,5.51259121,111040.0,111030.0,0.18013149]
[1760560443319,4.98964049,111030.0,111020.0,0.27531514]
[1760560443542,5.87210991,111030.0,111020.0,0.27531514]
[1760560444069,4.939509,111030.0,111020.0,0.27531514]
[1760560444262,5.11964049,111030.0,111020.0,0.27531514]
[1760560444477,5.72825996,111030.0,111020.0,0.27531514]
[1760560444908,4.99517688,111030.0,111020.0,0.27531514]
[1760560445357,4.95889534,111030.0,111020.0,0.27531514]
[1760560445596,4.809509,111030.0,111020.0,0.27531514]
[1760560447662,4.98964049,111030.0,111020.0,0.27531514]
[1760560447912,5.28485683,111030.0,111020.0,0.27531514]
[1760560448117,4.809509,111030.0,111020.0,0.27531514]
[1760560448536,4.809509,111030.0,111020.0,0.27766931]
[1760560449587,4.98959378,111060.0,111050.0,0.18009905]
[1760560449791,5.81754754,111060.0,111050.0,0.18009905]
[1760560449997,5.83428993,111060.0,111050.0,0.18009905]
[1760560450653,5.45812442,111060.0,111050.0,0.18009905]
[1760560450865,4.98277659,111060.0,111050.0,0.18009905]
[1760560451071,4.96604472,111060.0,111050.0,0.18009905]
[1760560451272,5.62147538,111060.0,111050.0,0.18009905]
[1760560451705,4.96604472,111060.0,111050.0,0.18009905]
[1760560452129,5.44139255,111060.0,111050.0,0.18009905]
[1760560452554,5.53107463,111060.0,111050.0,0.18009905]
[1760560452772,5.62147538,111060.0,111040.0,0.18011527]
[1760560452981,5.28485683,111050.0,111040.0,0.18011527]
[1760560453229,5.46495588,111050.0,111030.0,0.18911115]
[1760560453438,0.47534783,111040.0,111030.0,0.18013149]
[1760560453849,0.49392306,111050.0,111040.0,0.18011527]
[1760560454117,5.44180386,111050.0,111040.0,0.18011527]
[1760560454322,4.96645603,111050.0,111040.0,0.18011527]
[1760560454522,4.939509,111050.0,111040.0,0.18011527]
[1760560454953,4.98964049,111030.0,111020.0,0.09516742]
[1760560455196,6.01311967,111030.0,111020.0,0.09516742]
[1760560455456,6.06151857,111030.0,111020.0,0.09516742]
[1760560455658,6.09381001,111030.0,111020.0,0.09516742]
[1760560455865,6.09381001,111030.0,111020.0,0.09752159]
[1760560456079,6.18349209,111030.0,111020.0,0.09752159]
[1760560456489,6.15120065,111030.0,111020.0,0.09752159]
[1760560456741,6.06151857,111030.0,111020.0,0.09752159]
[1760560458730,6.5368664,111030.0,111020.0,1e-08]
[1760560458965,6.5368664,111030.0,111000.0,4.55127534]
[1760560458966,6.55694122,111030.0,111000.0,4.55127534]
[1760560459189,6.30016061,111010.0,111000.0,3.41701637]
[1760560459445,6.50697848,111010.0,111000.0,2.74811846]
[1760560459672,6.50697848,111010.0,110940.0,0.0717521]
[1760560459673,0.00901225,110960.0,110940.0,0.0717521]
[1760560459894,0.83777844,110950.0,110940.0,0.18027762]
[1760560460112,3.03728744,110950.0,110940.0,0.18027762]
[1760560460329,2.069509,110940.0,110930.0,0.18429232]
[1760560460512,2.54485683,110940.0,110930.0,0.18429232]
[1760560461233,0.47584799,110960.0,110950.0,0.18026137]
[1760560461441,2.109509,110960.0,110950.0,0.18026137]
[1760560462116,2.58485683,110960.0,110950.0,0.18026137]
[1760560462331,2.60417904,110960.0,110950.0,0.18026137]
[1760560462544,2.58485683,110960.0,110950.0,0.18026137]
[1760560463209,0.04,110960.0,110950.0,0.18026137]
[1760560465121,0.04,110960.0,110950.0,0.18438451]
[1760560465335,2.109509,110960.0,110950.0,0.18438451]
[1760560465565,2.8757085,110960.0,110950.0,0.00412314]